[Event "CZE-ch U14 Open 2023"]
[Site "Teplice"]
[Date "2023.03.18"]
[Round "9.7"]
[White "Vlcek, Vojtech"]
[Black "Hrbek, Jachym"]
[Result "1/2-1/2"]
[ECO "D30"]
[WhiteElo "1671"]
[BlackElo "1824"]
[Annotator "NA RC COMBH"]
[PlyCount "65"]
[EventDate "2023.03.09"]
[EventType "swiss"]
[EventCountry "CZE"]
[SourceTitle "playchess.com"]
[Source "ChessBase"]
[SourceQuality "1"]
[TimeControl "40/5400+30:1800+30"]

1. d4 {[%emt 0:00:44]} d5 {[%emt 0:00:21]} 2. c4 {[%emt 0:00:56]} e6 {[%emt 0:00:33]} 3. Nf3 {[%emt 0:01:54]} c6 {[%emt 0:00:47]} 4. e3 {[%emt 0:03:53]} f5 {[%emt 0:02:27]} 5. Bd3 {[%emt 0:00:39]} Nh6 {[%emt 0:02:37]} 6. O-O {[%emt 0:05:47]} Bd6 {[%emt 0:00:27]} 7. b3 {[%emt 0:00:18]} O-O {[%emt 0:05:56]} 8. Ba3 {[%emt 0:02:38]} Nf7 {[%emt 0:06:13]} 9. Bxd6 {[%emt 0:04:09]} Qxd6 {[%emt 0:06:54]} 10. Nc3 {[%emt 0:00:33]} Nd7 {[%emt 0:00:29]} 11. cxd5 {[%emt 0:02:05]} cxd5 {[%emt 0:02:26]} 12. Qc2 {[%emt 0:00:50]} a6 {[%emt 0:13:19]} 13. Rac1 {[%emt 0:01:28]} Nb6 {[%emt 0:11:24]} 14. Ne2 {[%emt 0:02:36]} Bd7 {[%emt 0:01:20]} 15. Qc5 {[%emt 0:10:34]} (15. h4 $16) 15... Rac8 {[%emt 0:05:49]} 16. Qxd6 {[%emt 0:01:51]} Nxd6 {[%emt 0:00:02]} 17. Rc5 {[%emt 0:02:02]} Ne4 {[%emt 0:02:24]} 18. Rcc1 {[%emt 0:10:28]} (18. Ra5 $14) 18... Rxc1 {[%emt 0:04:46]} 19. Rxc1 {[%emt 0:00:07]} Rc8 {[%emt 0:00:06]} 20. Rxc8+ {[%emt 0:02:45]} Bxc8 {[%emt 0:00:39]} 21. Ne5 {[%emt 0:02:02]} Nd7 {[%emt 0:06:57]} 22. Bxe4 {[%emt 0:02:25]} fxe4 {[%emt 0:01:13]} 23. Nxd7 {[%emt 0:02:38]} Bxd7 {[%emt 0:00:13]} 24. Nc3 {[%emt 0:02:05]} Kf7 {[%emt 0:04:02]} 25. Kf1 {[%emt 0:00:50]} Kf6 {[%emt 0:02:00]} 26. Ke2 {[%emt 0:00:20]} Kf5 {[%emt 0:01:41]} 27. Kd2 {[%emt 0:05:04]} h5 $11 {[%emt 0:03:47]} 28. Ke2 {[%emt 0:05:57]} Kg4 {[%emt 0:07:24]} 29. h3+ {[%emt 0:04:24]} Kh4 {[%emt 0:02:34]} 30. Kf1 {[%emt 0:01:15]} b5 {[%emt 0:04:35]} 31. b4 {[%emt 0:00:16]} Kg5 {[%emt 0:01:00]} 32. Ke2 {[%emt 0:02:08]} Kf5 {[%emt 0:00:54]} 33. f3 {[%emt 0:02:30]} 1/2-1/2

[Event "CZE-ch U14 Open 2023"]
[Site "Teplice"]
[Date "2023.03.18"]
[Round "9.8"]
[White "Zemek, Antonin"]
[Black "Tichy, Tomas"]
[Result "0-1"]
[ECO "A04"]
[WhiteElo "1739"]
[BlackElo "1810"]
[Annotator "NA RC COMBH"]
[PlyCount "96"]
[EventDate "2023.03.09"]
[EventType "swiss"]
[EventCountry "CZE"]
[SourceTitle "playchess.com"]
[Source "ChessBase"]
[SourceQuality "1"]
[TimeControl "40/5400+30:1800+30"]

1. Nf3 {[%emt 0:00:22]} Nc6 {[%emt 0:00:05]} 2. b3 {[%emt 0:02:38]} e5 {[%emt 0:00:08]} 3. d3 {[%emt 0:00:52]} d5 {[%emt 0:01:07]} 4. Bb2 {[%emt 0:01:21]} Bb4+ {[%emt 0:10:43]} 5. c3 {[%emt 0:00:59]} Bd6 {[%emt 0:00:16]} 6. g3 {[%emt 0:01:29]} f5 {[%emt 0:00:57]} 7. c4 {[%emt 0:02:27]} d4 {[%emt 0:01:24]} 8. Nbd2 {[%emt 0:01:17]} Nf6 {[%emt 0:00:31]} 9. Bg2 {[%emt 0:03:19]} O-O {[%emt 0:00:44]} 10. O-O {[%emt 0:00:40]} Bc5 {[%emt 0:03:32]} 11. Ne1 {[%emt 0:02:27]} Qe7 {[%emt 0:02:45]} 12. a3 {[%emt 0:01:35]} a5 {[%emt 0:01:34]} 13. Ndf3 {[%emt 0:07:58]} Be6 {[%emt 0:05:14]} 14. Nc2 {[%emt 0:01:41]} Rad8 $11 {[%emt 0:00:48]} 15. h3 {[%emt 0:04:25]} (15. b4 $1 $11 axb4 16. axb4 Nxb4 17. Nxb4 (17. Nxe5 Nxc2 18. Qxc2 Bc8 $11) 17... Bxb4 18. Nxe5) 15... Rd7 {[%emt 0:11:35]} 16. Nfe1 {[%emt 0:06:31]} e4 {[%emt 0:02:15]} 17. Bc1 {[%emt 0:02:25]} Bf7 {[%emt 0:02:37]} 18. Bd2 {[%emt 0:03:50]} e3 {[%emt 0:09:34]} 19. fxe3 {[%emt 0:03:27]} (19. Bxc6 $142 exd2 20. Bxd7 dxe1=N 21. Qxe1 Nxd7 22. b4 axb4 23. axb4) 19... dxe3 {[%emt 0:00:14]} 20. Bc3 {[%emt 0:00:09]} Nh5 {[%emt 0:06:43]} 21. Bxc6 {[%emt 0:05:15]} bxc6 {[%emt 0:01:07]} 22. Rf3 {[%emt 0:04:42]} Qg5 {[%emt 0:01:26]} 23. Ng2 {[%emt 0:03:47]} Nxg3 {[%emt 0:02:20]} 24. Qe1 {[%emt 0:01:38]} Nh5 {[%emt 0:05:54]} 25. d4 {[%emt 0:03:29]} Bd6 {[%emt 0:00:38]} 26. Ncxe3 {[%emt 0:01:45]} Bg3 {[%emt 0:02:05]} 27. Qf1 {[%emt 0:00:59]} f4 {[%emt 0:00:29]} 28. Ng4 {[%emt 0:01:32]} Be6 {[%emt 0:01:15]} 29. Ne5 {[%emt 0:00:59]} Rd6 {[%emt 0:02:58]} 30. Bxa5 {[%emt 0:01:24]} Rxd4 {[%emt 0:00:53]} 31. Nxc6 {[%emt 0:01:18]} Re4 {[%emt 0:03:18]} 32. Rd1 {[%emt 0:02:28]} Qc5+ {[%emt 0:01:10]} 33. Kh1 {[%emt 0:01:37]} Qxc6 {[%emt 0:00:26]} 34. Bb4 {[%emt 0:00:38]} Re8 {[%emt 0:00:43]} 35. Rdd3 {[%emt 0:02:38]} Bxh3 {[%emt 0:01:00]} 36. e3 {[%emt 0:01:08]} Rxe3 {[%emt 0:02:13]} 37. Rd5 {[%emt 0:01:27]} Bxg2+ {[%emt 0:03:31]} 38. Kxg2 {[%emt 0:01:44]} Rxf3 {[%emt 0:01:23]} 39. Qxf3 {[%emt 0:00:17]} Nf6 {[%emt 0:00:39]} 40. Bc3 {[%emt 0:01:18]} Nxd5 {[%emt 0:00:52]} 41. cxd5 {[%emt 0:30:20]} Qc5 {[%emt 0:30:38]} 42. d6 {[%emt 0:01:15]} cxd6 {[%emt 0:00:45]} 43. Bxg7 {[%emt 0:00:36]} Kxg7 {[%emt 0:01:15]} 44. Kh3 {[%emt 0:00:23]} Qf5+ {[%emt 0:00:06]} 45. Kg2 {[%emt 0:00:12]} Qc2+ {[%emt 0:00:09]} 46. Kh3 {[%emt 0:00:05]} Qh2+ {[%emt 0:00:10]} 47. Kg4 {[%emt 0:00:03]} Qh4+ {[%emt 0:00:09]} 48. Kf5 {[%emt 0:00:02]} Re5# {[%emt 0:00:14]} 0-1

[Event "CZE-ch U14 Open 2023"]
[Site "Teplice"]
[Date "2023.03.18"]
[Round "9.9"]
[White "Dusanek, Michal"]
[Black "Andrle, Filip"]
[Result "1/2-1/2"]
[ECO "B30"]
[WhiteElo "1624"]
[BlackElo "1721"]
[Annotator "NA RC COMBH"]
[PlyCount "94"]
[EventDate "2023.03.09"]
[EventType "swiss"]
[EventCountry "CZE"]
[SourceTitle "playchess.com"]
[Source "ChessBase"]
[SourceQuality "1"]
[TimeControl "40/5400+30:1800+30"]

1. e4 {[%emt 0:00:03]} c5 {[%emt 0:01:06]} 2. Nf3 {[%emt 0:00:05]} Nc6 {[%emt 0:00:23]} 3. Bb5 {[%emt 0:00:59]} d6 {[%emt 0:00:54]} 4. d4 {[%emt 0:00:23]} cxd4 {[%emt 0:00:35]} 5. Qxd4 {[%emt 0:00:34]} Bd7 {[%emt 0:04:46]} 6. Bxc6 {[%emt 0:00:15]} Bxc6 {[%emt 0:07:13]} 7. Nc3 {[%emt 0:00:26]} Nf6 {[%emt 0:06:35]} 8. Bg5 {[%emt 0:01:15]} e6 {[%emt 0:05:17]} 9. O-O-O {[%emt 0:00:49]} Be7 {[%emt 0:02:53]} 10. Qd3 {[%emt 0:01:10]} Qa5 {[%emt 0:06:43]} 11. h4 {[%emt 0:09:06]} Rc8 {[%emt 0:12:01]} 12. Nd4 {[%emt 0:06:36]} h6 {[%emt 0:06:38]} 13. Bxf6 {[%emt 0:11:42]} gxf6 {[%emt 0:11:29]} 14. f4 {[%emt 0:02:27]} a6 {[%emt 0:05:53]} 15. f5 {[%emt 0:03:54]} e5 {[%emt 0:02:29]} 16. Nb3 {[%emt 0:02:02]} Qc7 {[%emt 0:01:02]} 17. Rd2 {[%emt 0:01:47]} b5 {[%emt 0:03:01]} 18. Nd5 {[%emt 0:05:08]} Bxd5 {[%emt 0:00:53]} 19. Qxd5 {[%emt 0:00:50]} Qc6 {[%emt 0:01:46]} 20. Rg1 {[%emt 0:09:24]} Rg8 {[%emt 0:01:44]} 21. g4 {[%emt 0:01:23]} Qxd5 {[%emt 0:00:21]} 22. Rxd5 {[%emt 0:01:13]} Kd7 {[%emt 0:05:04]} 23. Rd3 {[%emt 0:03:27]} Rg7 {[%emt 0:00:48]} 24. Nd2 {[%emt 0:02:59]} Rcg8 {[%emt 0:02:26]} 25. Rdg3 {[%emt 0:00:39]} h5 {[%emt 0:01:01]} 26. Nf1 {[%emt 0:01:37]} Rxg4 {[%emt 0:00:44]} 27. Rxg4 {[%emt 0:00:42]} Rxg4 {[%emt 0:00:39]} 28. Rxg4 {[%emt 0:00:41]} hxg4 {[%emt 0:00:08]} 29. Ne3 {[%emt 0:01:01]} g3 {[%emt 0:00:34]} 30. Kd1 {[%emt 0:00:27]} Bd8 {[%emt 0:04:41]} 31. Ke2 {[%emt 0:01:57]} Bb6 {[%emt 0:05:37]} 32. Kf3 {[%emt 0:01:11]} Bxe3 {[%emt 0:00:30]} 33. Kxe3 {[%emt 0:00:14]} Ke7 {[%emt 0:00:19]} 34. Kf3 {[%emt 0:01:39]} Kf8 {[%emt 0:00:17]} 35. Kxg3 {[%emt 0:00:34]} Kg7 {[%emt 0:00:23]} 36. Kf3 {[%emt 0:06:44]} a5 {[%emt 0:00:35]} 37. c3 {[%emt 0:07:22]} Kh6 {[%emt 0:00:48]} 38. b4 {[%emt 0:00:42]} axb4 {[%emt 0:00:32]} 39. cxb4 {[%emt 0:00:08]} Kg7 {[%emt 0:00:29]} 40. Ke3 {[%emt 0:00:40]} Kf8 {[%emt 0:00:14]} 41. Kd3 {[%emt 0:30:30]} Kg7 {[%emt 0:30:41]} 42. a4 {[%emt 0:00:32]} bxa4 {[%emt 0:00:05]} 43. b5 {[%emt 0:00:20]} d5 {[%emt 0:00:44]} 44. b6 {[%emt 0:00:00]} a3 {[%emt 0:00:00]} 45. Kc2 {[%emt 0:00:00]} d4 {[%emt 0:00:00]} 46. b7 {[%emt 0:00:00]} d3+ {[%emt 0:00:00]} 47. Kxd3 {[%emt 0:00:00]} a2 1/2-1/2

[Event "CZE-ch U14 Open 2023"]
[Site "Teplice"]
[Date "2023.03.18"]
[Round "9.10"]
[White "Srba, Daniel"]
[Black "Hobza, Richard"]
[Result "1/2-1/2"]
[ECO "C01"]
[WhiteElo "1509"]
[BlackElo "1702"]
[Annotator "NA RC COMBH"]
[PlyCount "61"]
[EventDate "2023.03.09"]
[EventType "swiss"]
[EventCountry "CZE"]
[SourceTitle "playchess.com"]
[Source "ChessBase"]
[SourceQuality "1"]
[TimeControl "40/5400+30:1800+30"]

1. e4 {[%emt 0:00:04]} e6 {[%emt 0:00:07]} 2. d4 {[%emt 0:00:12]} d5 {[%emt 0:00:06]} 3. exd5 {[%emt 0:00:35]} exd5 {[%emt 0:00:04]} 4. Bf4 {[%emt 0:00:14]} Nf6 {[%emt 0:01:13]} 5. Nc3 {[%emt 0:02:13]} Bb4 {[%emt 0:01:31]} 6. Bd3 {[%emt 0:02:51]} O-O {[%emt 0:01:08]} 7. Nge2 {[%emt 0:04:30]} c5 {[%emt 0:03:30]} 8. dxc5 {[%emt 0:07:37]} Bxc5 {[%emt 0:02:23]} 9. h3 {[%emt 0:03:10]} Nc6 {[%emt 0:04:52]} 10. O-O {[%emt 0:00:32]} a6 {[%emt 0:06:54]} 11. Bg5 {[%emt 0:02:25]} Be6 {[%emt 0:05:32]} 12. Ng3 {[%emt 0:07:26]} h6 {[%emt 0:04:59]} 13. Bf4 {[%emt 0:07:36]} Bd6 {[%emt 0:04:56]} 14. Bxd6 {[%emt 0:03:07]} Qxd6 {[%emt 0:00:06]} 15. Bf5 {[%emt 0:01:34]} Qd7 {[%emt 0:04:20]} 16. Bd3 {[%emt 0:04:55]} Rac8 {[%emt 0:05:24]} 17. Re1 {[%emt 0:01:27]} Nb4 {[%emt 0:03:20]} 18. a3 {[%emt 0:06:41]} Nxd3 {[%emt 0:00:34]} 19. Qxd3 {[%emt 0:00:35]} Rc4 {[%emt 0:05:15]} 20. Re5 {[%emt 0:09:11]} Rfc8 {[%emt 0:04:23]} 21. Rc1 {[%emt 0:07:10]} Qc7 {[%emt 0:03:10]} 22. Re2 {[%emt 0:01:39]} Qb6 {[%emt 0:04:04]} 23. Nd1 {[%emt 0:04:05]} Qc7 {[%emt 0:05:46]} 24. Nc3 {[%emt 0:01:18]} b5 {[%emt 0:01:28]} 25. Nd1 {[%emt 0:09:29]} Qb6 {[%emt 0:03:59]} 26. c3 {[%emt 0:02:24]} a5 {[%emt 0:01:52]} 27. Ne3 {[%emt 0:01:15]} R4c6 {[%emt 0:01:11]} 28. Ngf5 {[%emt 0:00:53]} R6c7 {[%emt 0:06:47]} 29. Nd4 {[%emt 0:02:10]} b4 {[%emt 0:02:41]} 30. axb4 {[%emt 0:03:03]} axb4 {[%emt 0:00:11]} 31. Rec2 {[%emt 0:01:39]} 1/2-1/2

[Event "CZE-ch U14 Open 2023"]
[Site "Teplice"]
[Date "2023.03.18"]
[Round "9.11"]
[White "Macosek, Alex"]
[Black "Krautschneider, Daniel Jan"]
[Result "0-1"]
[ECO "D00"]
[WhiteElo "1466"]
[BlackElo "1679"]
[Annotator "NA RC COMBH"]
[PlyCount "80"]
[EventDate "2023.03.09"]
[EventType "swiss"]
[EventCountry "CZE"]
[SourceTitle "playchess.com"]
[Source "ChessBase"]
[SourceQuality "1"]
[TimeControl "40/5400+30:1800+30"]

1. d4 {[%emt 0:00:29]} d5 {[%emt 0:00:12]} 2. Bf4 {[%emt 0:00:15]} c5 {[%emt 0:00:10]} 3. c3 {[%emt 0:08:37]} Nc6 {[%emt 0:00:13]} 4. e3 {[%emt 0:01:16]} Qb6 {[%emt 0:00:16]} 5. Qb3 {[%emt 0:00:48]} c4 {[%emt 0:00:07]} 6. Qc2 {[%emt 0:06:36]} e5 {[%emt 0:00:28]} 7. dxe5 {[%emt 0:03:48]} Bf5 {[%emt 0:00:10]} 8. Qd2 {[%emt 0:06:58]} f6 {[%emt 0:05:43]} 9. Nf3 {[%emt 0:04:33]} g5 {[%emt 0:01:17]} 10. Bg3 {[%emt 0:03:16]} h5 {[%emt 0:01:03]} 11. exf6 {[%emt 0:03:47]} Nxf6 {[%emt 0:01:42]} 12. Nxg5 {[%emt 0:07:42]} Bg7 {[%emt 0:07:04]} 13. h4 {[%emt 0:08:54]} O-O {[%emt 0:04:33]} 14. Be2 {[%emt 0:05:04]} Rad8 {[%emt 0:04:31]} 15. O-O {[%emt 0:00:40]} Bh6 {[%emt 0:00:51]} 16. f3 {[%emt 0:02:33]} Rfe8 {[%emt 0:07:07]} 17. Bf2 {[%emt 0:01:31]} Qc7 {[%emt 0:02:04]} 18. Na3 {[%emt 0:01:55]} Ne5 {[%emt 0:05:58]} 19. Qd4 {[%emt 0:03:35]} a6 {[%emt 0:02:15]} 20. Bg3 {[%emt 0:02:49]} Nh7 {[%emt 0:12:26]} 21. Bh2 {[%emt 0:08:45]} Bg7 {[%emt 0:14:26]} 22. Qf4 {[%emt 0:03:28]} Rf8 {[%emt 0:03:03]} 23. Qg3 {[%emt 0:00:58]} Kh8 24. e4 {[%emt 0:02:30]} Qb6+ {[%emt 0:04:13]} 25. Kh1 {[%emt 0:01:18]} Bc8 {[%emt 0:04:45]} 26. Nxh7 {[%emt 0:03:29]} Kxh7 {[%emt 0:08:13]} 27. Qg5 {[%emt 0:00:44]} Rd6 {[%emt 0:02:31]} 28. Bxe5 {[%emt 0:00:49]} Rg6 {[%emt 0:00:12]} 29. Qe7 {[%emt 0:03:45]} Rg8 {[%emt 0:01:02]} 30. Nxc4 {[%emt 0:01:22]} dxc4 {[%emt 0:02:57]} 31. Bxc4 {[%emt 0:00:05]} Be6 {[%emt 0:00:05]} 32. Bd4 {[%emt 0:00:29]} Qxb2 {[%emt 0:00:08]} 33. Rg1 {[%emt 0:00:42]} Bxc4 {[%emt 0:00:15]} 34. Rab1 {[%emt 0:01:00]} Qxa2 {[%emt 0:00:53]} 35. Rxb7 {[%emt 0:00:13]} Bf1 {[%emt 0:00:30]} 36. g3 {[%emt 0:01:25]} Be2 {[%emt 0:00:46]} 37. Qf7 {[%emt 0:00:36]} Qd2 {[%emt 0:01:06]} 38. Qf5 {[%emt 0:01:40]} Kh6 {[%emt 0:01:53]} 39. Qf7 {[%emt 0:00:56]} Rf6 {[%emt 0:00:48]} 40. Qd5 {[%emt 0:00:39]} Bxf3+ {[%emt 0:00:10]} 0-1

[Event "CZE-ch U14 Open 2023"]
[Site "Teplice"]
[Date "2023.03.18"]
[Round "9.12"]
[White "Soucek, Andrej"]
[Black "Striz, Tadeas"]
[Result "1/2-1/2"]
[ECO "E01"]
[WhiteElo "1679"]
[BlackElo "1503"]
[Annotator "NA RC COMBH"]
[PlyCount "60"]
[EventDate "2023.03.09"]
[EventType "swiss"]
[EventCountry "CZE"]
[SourceTitle "playchess.com"]
[Source "ChessBase"]
[SourceQuality "1"]
[TimeControl "40/5400+30:1800+30"]

1. d4 {[%emt 0:00:05]} Nf6 {[%emt 0:00:13]} 2. c4 {[%emt 0:00:08]} e6 {[%emt 0:00:09]} 3. g3 {[%emt 0:00:04]} d5 {[%emt 0:02:05]} 4. Bg2 {[%emt 0:00:21]} b6 {[%emt 0:00:30]} 5. Nc3 {[%emt 0:01:51]} Bb7 {[%emt 0:00:14]} 6. Qc2 {[%emt 0:01:41]} Bb4 {[%emt 0:00:49]} 7. Bg5 {[%emt 0:01:47]} Nbd7 {[%emt 0:00:56]} 8. e3 {[%emt 0:02:02]} h6 {[%emt 0:01:30]} 9. Bxf6 {[%emt 0:00:05]} Bxc3+ {[%emt 0:00:06]} 10. bxc3 {[%emt 0:01:13]} Nxf6 {[%emt 0:01:17]} 11. Ne2 {[%emt 0:06:39]} O-O {[%emt 0:00:31]} 12. O-O {[%emt 0:14:11]} c6 {[%emt 0:20:31]} 13. Qa4 {[%emt 0:37:50]} Qc8 {[%emt 0:07:29]} 14. cxd5 {[%emt 0:02:26]} cxd5 {[%emt 0:00:02]} 15. Rfc1 {[%emt 0:11:19]} Ba6 {[%emt 0:07:42]} 16. Bf1 {[%emt 0:01:27]} Ne4 {[%emt 0:06:07]} 17. Qc2 {[%emt 0:03:09]} Qc6 {[%emt 0:01:34]} 18. f3 {[%emt 0:05:58]} Nd6 {[%emt 0:00:19]} 19. Nf4 {[%emt 0:00:42]} Bxf1 {[%emt 0:02:25]} 20. Kxf1 {[%emt 0:00:44]} Rfc8 {[%emt 0:00:55]} 21. Qb3 {[%emt 0:01:20]} Rc7 {[%emt 0:07:56]} 22. Rc2 {[%emt 0:00:19]} Rac8 {[%emt 0:00:04]} 23. Rac1 {[%emt 0:00:10]} Qc4+ {[%emt 0:00:10]} 24. Kf2 {[%emt 0:00:22]} b5 {[%emt 0:02:52]} 25. g4 {[%emt 0:05:14]} Qxb3 {[%emt 0:00:30]} 26. axb3 {[%emt 0:00:09]} b4 {[%emt 0:00:01]} 27. Ne2 {[%emt 0:00:14]} Nb5 {[%emt 0:00:49]} 28. Ke1 {[%emt 0:01:14]} Nxc3 {[%emt 0:06:44]} 29. Nxc3 {[%emt 0:00:50]} bxc3 {[%emt 0:02:17]} 30. Ke2 {[%emt 0:00:06]} Kf8 {[%emt 0:00:05]} 1/2-1/2